[Event "Live Chess"]
[Site "Chess.com"]
[Date "2023.09.16"]
[Round "-"]
[White "IanFLS"]
[Black "ABC2009V"]
[Result "1-0"]
[WhiteElo "1875"]
[BlackElo "2011"]
[TimeControl "900+5"]
[EndTime "7:11:58 PDT"]
[Termination "IanFLS venceu por desistência"]

1. d4 {[%clk 0:14:59.2]} 1... Nf6 {[%clk 0:15:03.3]} 2. Bf4 {[%clk 0:15:02]}
2... g6 {[%clk 0:15:05]} 3. Nf3 {[%clk 0:15:05.3]} 3... Bg7 {[%clk 0:15:08.3]}
4. h3 {[%clk 0:15:05.7]} 4... d6 {[%clk 0:15:05.9]} 5. Nc3 {[%clk 0:15:08.1]}
5... O-O {[%clk 0:15:09.2]} 6. e3 {[%clk 0:15:12.1]} 6... Nbd7 {[%clk
0:15:13.1]} 7. Bc4 {[%clk 0:15:15.8]} 7... c6 {[%clk 0:15:08.7]} 8. O-O {[%clk
0:15:15.3]} 8... Qe8 {[%clk 0:15:09.6]} 9. Re1 {[%clk 0:15:15.3]} 9... e5 {[%clk
0:15:09.5]} 10. dxe5 {[%clk 0:15:18.1]} 10... dxe5 {[%clk 0:15:14.4]} 11. Bh2
{[%clk 0:15:19.5]} 11... Nb6 {[%clk 0:14:49]} 12. Bb3 {[%clk 0:15:20.6]} 12...
Nfd7 {[%clk 0:14:37.9]} 13. Ne4 {[%clk 0:15:19.9]} 13... Nf6 {[%clk 0:13:45.8]}
14. Nd6 {[%clk 0:15:18.4]} 14... Qe7 {[%clk 0:13:20.5]} 15. Nxe5 {[%clk
0:15:16.3]} 15... Be6 {[%clk 0:13:20.8]} 16. Bxe6 {[%clk 0:15:15.3]} 16... fxe6
{[%clk 0:13:25.7]} 17. Ndc4 {[%clk 0:14:41.1]} 17... Nfd5 {[%clk 0:13:20.2]} 18.
c3 {[%clk 0:14:35.9]} 18... Rad8 {[%clk 0:13:10.2]} 19. Qe2 {[%clk 0:14:38.3]}
19... Nd7 {[%clk 0:11:39.5]} 20. Rad1 {[%clk 0:14:19.7]} 20... N7b6 {[%clk
0:09:56]} 21. e4 {[%clk 0:14:00.3]} 21... Nf4 {[%clk 0:09:45]} 22. Bxf4 {[%clk
0:14:02.7]} 22... Rxf4 {[%clk 0:09:39.4]} 23. Nxb6 {[%clk 0:13:56.8]} 23... Bxe5
{[%clk 0:08:23.6]} 24. Nc4 {[%clk 0:13:58]} 24... Bc7 {[%clk 0:07:49.5]} 25.
Rxd8+ {[%clk 0:13:58.2]} 25... Qxd8 {[%clk 0:07:44.6]} 26. Rd1 {[%clk
0:14:01.2]} 26... Qf8 {[%clk 0:07:45.7]} 27. f3 {[%clk 0:13:56.1]} 27... Rh4
{[%clk 0:06:48.3]} 28. Rd7 {[%clk 0:13:36.9]} 28... Qf4 {[%clk 0:06:43.2]} 29.
Qd2 {[%clk 0:13:15.9]} 29... Qh2+ {[%clk 0:06:36.2]} 30. Kf1 {[%clk 0:13:17.6]}
30... Bg3 {[%clk 0:04:46.3]} 31. Qd4 {[%clk 0:12:26.2]} 31... e5 {[%clk
0:04:10.2]} 32. Qg1 {[%clk 0:12:22.7]} 32... Rxh3 {[%clk 0:02:26.2]} 33. Rd8+
{[%clk 0:12:25.5]} 33... Kg7 {[%clk 0:02:28.7]} 34. gxh3 {[%clk 0:12:29.9]}
34... Qc2 {[%clk 0:02:19.7]} 35. Qxg3 {[%clk 0:12:24.8]} 1-0

[Event "Live Chess"]
[Site "Chess.com"]
[Date "2023.09.16"]
[Round "-"]
[White "Gustavinh13"]
[Black "lucasportolelis"]
[Result "1-0"]
[WhiteElo "1934"]
[BlackElo "1679"]
[TimeControl "900+5"]
[EndTime "7:12:08 PDT"]
[Termination "Gustavinh13 venceu por desistência"]

1. e4 {[%clk 0:15:01.4]} 1... e5 {[%clk 0:15:03.6]} 2. Nf3 {[%clk 0:15:05.7]}
2... Nc6 {[%clk 0:15:06.4]} 3. d4 {[%clk 0:15:09.8]} 3... exd4 {[%clk
0:15:09.7]} 4. Nxd4 {[%clk 0:15:14.7]} 4... Nf6 {[%clk 0:15:13.7]} 5. Nc3 {[%clk
0:15:18.7]} 5... Bc5 {[%clk 0:15:16.7]} 6. Nxc6 {[%clk 0:15:20.9]} 6... bxc6
{[%clk 0:15:18.8]} 7. Bd3 {[%clk 0:15:20.2]} 7... d6 {[%clk 0:15:20.1]} 8. O-O
{[%clk 0:15:23.3]} 8... O-O {[%clk 0:15:23.2]} 9. h3 {[%clk 0:15:27.1]} 9... Re8
{[%clk 0:15:14.7]} 10. Re1 {[%clk 0:15:23.3]} 10... Bb7 {[%clk 0:15:10.4]} 11.
Bg5 {[%clk 0:15:22.1]} 11... h6 {[%clk 0:15:11.8]} 12. Bh4 {[%clk 0:14:58]}
12... Qe7 {[%clk 0:14:48.5]} 13. Qf3 {[%clk 0:14:35.4]} 13... Bd4 {[%clk
0:14:10.8]} 14. Ne2 {[%clk 0:14:10]} 14... Be5 {[%clk 0:13:58.8]} 15. Qe3 {[%clk
0:13:52.1]} 15... d5 {[%clk 0:13:09.5]} 16. f4 {[%clk 0:13:19.5]} 16... dxe4
{[%clk 0:12:38.8]} 17. fxe5 {[%clk 0:13:15.9]} 17... exd3 {[%clk 0:12:35.5]} 18.
Qxd3 {[%clk 0:13:19.6]} 18... Qxe5 {[%clk 0:12:03.6]} 19. Nc3 {[%clk 0:12:49.8]}
19... Qc5+ {[%clk 0:11:53.9]} 20. Bf2 {[%clk 0:12:52.8]} 20... Qd6 {[%clk
0:11:48.4]} 21. Qc4 {[%clk 0:12:38.1]} 21... Qd2 {[%clk 0:10:56.2]} 22. Qb3
{[%clk 0:12:15.6]} 22... Ba6 {[%clk 0:10:24.2]} 23. Rad1 {[%clk 0:12:08.1]}
23... Rxe1+ {[%clk 0:10:21.6]} 24. Rxe1 {[%clk 0:12:13]} 24... Qg5 {[%clk
0:10:00.1]} 25. Re7 {[%clk 0:11:48.2]} 25... Nd5 {[%clk 0:08:36.5]} 26. Nxd5
{[%clk 0:11:48.6]} 26... cxd5 {[%clk 0:08:36.1]} 27. Rxc7 {[%clk 0:11:52]} 27...
Qc1+ {[%clk 0:08:27]} 28. Kh2 {[%clk 0:11:53.5]} 28... Qf4+ {[%clk 0:08:30.2]}
29. Bg3 {[%clk 0:11:57.7]} 29... Qe4 {[%clk 0:08:25.3]} 30. Rxa7 {[%clk
0:10:59.6]} 30... Rxa7 {[%clk 0:08:03.9]} 31. Qb8+ {[%clk 0:11:02.6]} 31... Kh7
{[%clk 0:08:04.7]} 32. Qxa7 {[%clk 0:11:06.6]} 32... Bf1 {[%clk 0:08:02.3]} 33.
Qf2 {[%clk 0:11:10.5]} 33... Qe2 {[%clk 0:07:25.5]} 34. Qxe2 {[%clk 0:11:02.4]}
34... Bxe2 {[%clk 0:07:29.1]} 35. Kg1 {[%clk 0:11:05.2]} 35... g5 {[%clk
0:07:17.6]} 36. Bf2 {[%clk 0:11:06]} 36... f5 {[%clk 0:07:17.4]} 37. Bd4 {[%clk
0:11:07.8]} 37... Kg6 {[%clk 0:07:17.6]} 38. c3 {[%clk 0:11:03.1]} 38... g4
{[%clk 0:07:04.8]} 39. hxg4 {[%clk 0:11:06.1]} 39... fxg4 {[%clk 0:07:02.2]} 40.
g3 {[%clk 0:11:05.1]} 40... Bd3 {[%clk 0:06:47.9]} 41. b4 {[%clk 0:10:57.9]}
41... Bb5 {[%clk 0:06:41.4]} 42. Kf2 {[%clk 0:10:55.5]} 42... Kf5 {[%clk
0:06:42.8]} 43. Ke3 {[%clk 0:10:58.7]} 43... h5 {[%clk 0:06:43.5]} 44. Bb6
{[%clk 0:10:54]} 44... Ba4 {[%clk 0:06:30.9]} 45. Kd4 {[%clk 0:10:50.9]} 45...
Ke6 {[%clk 0:06:25.8]} 46. Kc5 {[%clk 0:09:44]} 46... Ke5 {[%clk 0:06:26.8]} 47.
Bd8 {[%clk 0:09:42.9]} 47... Bd7 {[%clk 0:06:07.9]} 48. b5 {[%clk 0:09:40.7]}
48... Ke4 {[%clk 0:05:56.1]} 49. b6 {[%clk 0:09:35.8]} 49... Bc8 {[%clk
0:05:56.5]} 50. Kc6 {[%clk 0:09:35.6]} 50... d4 {[%clk 0:05:49.4]} 51. cxd4
{[%clk 0:09:37.9]} 51... Kxd4 {[%clk 0:05:52.3]} 52. b7 {[%clk 0:09:42.1]} 52...
Bxb7+ {[%clk 0:05:55.4]} 53. Kxb7 {[%clk 0:09:47]} 53... Ke3 {[%clk 0:05:58.1]}
54. a4 {[%clk 0:09:50.4]} 54... Kf3 {[%clk 0:06:01.9]} 55. Bh4 {[%clk
0:09:54.8]} 1-0

[Event "Live Chess"]
[Site "Chess.com"]
[Date "2023.09.16"]
[Round "-"]
[White "Abofado"]
[Black "ArthurMPRJ"]
[Result "0-1"]
[WhiteElo "582"]
[BlackElo "1387"]
[TimeControl "900+5"]
[EndTime "7:12:40 PDT"]
[Termination "ArthurMPRJ venceu por xeque-mate"]

1. e4 {[%clk 0:15:02.8]} 1... c5 {[%clk 0:15:03.7]} 2. Nf3 {[%clk 0:15:05.9]}
2... e6 {[%clk 0:15:07.9]} 3. d4 {[%clk 0:15:05.9]} 3... cxd4 {[%clk 0:15:12.8]}
4. Nxd4 {[%clk 0:15:08.9]} 4... Nc6 {[%clk 0:15:17]} 5. Nxc6 {[%clk 0:15:08.4]}
5... bxc6 {[%clk 0:15:20.9]} 6. Qf3 {[%clk 0:15:10.3]} 6... d5 {[%clk
0:15:21.5]} 7. exd5 {[%clk 0:15:13.2]} 7... cxd5 {[%clk 0:15:26.4]} 8. c4 {[%clk
0:15:15.6]} 8... Nf6 {[%clk 0:15:20]} 9. cxd5 {[%clk 0:15:17.3]} 9... Nxd5
{[%clk 0:15:20.7]} 10. Bb5+ {[%clk 0:15:12.4]} 10... Bd7 {[%clk 0:15:24.1]} 11.
Bxd7+ {[%clk 0:15:16.1]} 11... Qxd7 {[%clk 0:15:29]} 12. O-O {[%clk 0:15:15.3]}
12... Bd6 {[%clk 0:15:24.7]} 13. Na3 {[%clk 0:15:13.6]} 13... Bxa3 {[%clk
0:15:21.4]} 14. bxa3 {[%clk 0:15:12.4]} 14... O-O {[%clk 0:15:22.5]} 15. Qg3
{[%clk 0:14:58.5]} 15... Rab8 {[%clk 0:15:13.8]} 16. Bh6 {[%clk 0:15:02.1]}
16... f6 {[%clk 0:15:17.4]} 17. Rac1 {[%clk 0:14:50.3]} 17... Kh8 {[%clk
0:15:19.1]} 18. Bf4 {[%clk 0:14:43.7]} 18... Nxf4 {[%clk 0:15:10.1]} 19. Qxf4
{[%clk 0:14:48.6]} 19... e5 {[%clk 0:15:12.4]} 20. Qg3 {[%clk 0:14:31.8]} 20...
Rfd8 {[%clk 0:14:54.3]} 21. Rc2 {[%clk 0:14:24.9]} 21... Rb6 {[%clk 0:14:41.4]}
22. Rfc1 {[%clk 0:14:24.3]} 22... Qd1+ {[%clk 0:14:40]} 23. Rxd1 {[%clk
0:14:16.7]} 23... Rxd1# {[%clk 0:14:44.9]} 0-1

[Event "Live Chess"]
[Site "Chess.com"]
[Date "2023.09.16"]
[Round "-"]
[White "Riquelme_Leonardo"]
[Black "kslusk"]
[Result "1-0"]
[WhiteElo "1683"]
[BlackElo "848"]
[TimeControl "900+5"]
[EndTime "7:12:56 PDT"]
[Termination "Riquelme_Leonardo venceu por desistência"]

1. e4 {[%clk 0:15:04]} 1... e6 {[%clk 0:15:03.8]} 2. d4 {[%clk 0:15:08.2]} 2...
d5 {[%clk 0:15:08]} 3. exd5 {[%clk 0:15:13.1]} 3... exd5 {[%clk 0:15:11.7]} 4.
Bd3 {[%clk 0:15:17.6]} 4... Nc6 {[%clk 0:15:14.9]} 5. Nf3 {[%clk 0:15:22]} 5...
Bg4 {[%clk 0:15:17.3]} 6. c3 {[%clk 0:15:26.3]} 6... Nf6 {[%clk 0:15:18.7]} 7.
O-O {[%clk 0:15:29.1]} 7... Bd6 {[%clk 0:15:16.7]} 8. Re1+ {[%clk 0:15:33.1]}
8... Be7 {[%clk 0:15:19.3]} 9. Bg5 {[%clk 0:15:28.7]} 9... h6 {[%clk 0:15:21.5]}
10. Bxf6 {[%clk 0:15:32.1]} 10... gxf6 {[%clk 0:15:24.1]} 11. Nbd2 {[%clk
0:15:34.3]} 11... Rg8 {[%clk 0:15:26.1]} 12. Qe2 {[%clk 0:15:34.4]} 12... Qd7
{[%clk 0:15:28.4]} 13. Bb5 {[%clk 0:15:35.9]} 13... Bxf3 {[%clk 0:15:02.2]} 14.
Nxf3 {[%clk 0:15:36]} 14... O-O-O {[%clk 0:13:52.4]} 15. Bxc6 {[%clk 0:15:36.9]}
15... Qg4 {[%clk 0:13:39.1]} 16. g3 {[%clk 0:15:20.7]} 16... bxc6 {[%clk
0:13:13.3]} 17. h3 {[%clk 0:15:16.8]} 17... Qd7 {[%clk 0:13:02.3]} 18. Qxe7
{[%clk 0:15:20.5]} 18... Qxe7 {[%clk 0:13:04.7]} 19. Rxe7 {[%clk 0:15:24.4]}
19... Rg7 {[%clk 0:13:05.5]} 20. Rae1 {[%clk 0:15:27.4]} 20... Rdg8 {[%clk
0:12:54.5]} 21. Re8+ {[%clk 0:15:29.2]} 21... Rxe8 {[%clk 0:12:57.8]} 22. Rxe8+
{[%clk 0:15:34.1]} 22... Kd7 {[%clk 0:13:02.6]} 23. Ra8 {[%clk 0:15:37.8]} 23...
f5 {[%clk 0:13:05.2]} 24. Kg2 {[%clk 0:15:40.5]} 24... f4 {[%clk 0:13:02.8]} 25.
g4 {[%clk 0:15:44.6]} 25... h5 {[%clk 0:13:05.7]} 26. g5 {[%clk 0:15:48.8]}
26... f6 {[%clk 0:13:10.1]} 27. h4 {[%clk 0:15:53.2]} 27... fxg5 {[%clk
0:13:13.7]} 28. hxg5 {[%clk 0:15:58.1]} 28... Rh7 {[%clk 0:13:10.7]} 29. Kh3
{[%clk 0:16:01.6]} 29... Ke6 {[%clk 0:13:09.9]} 30. Rxa7 {[%clk 0:16:05.1]}
30... Kf5 {[%clk 0:13:14.5]} 31. Ne5 {[%clk 0:15:59.6]} 31... Kxg5 {[%clk
0:13:09.7]} 32. f3 {[%clk 0:15:57.8]} 32... Rg7 {[%clk 0:13:07.1]} 33. Nxc6
{[%clk 0:15:57.1]} 33... Kf5 {[%clk 0:13:02.9]} 34. Ne5 {[%clk 0:16:00.8]} 34...
Rg3+ {[%clk 0:13:00.7]} 35. Kh2 {[%clk 0:16:03.7]} 35... h4 {[%clk 0:13:00.6]}
36. Rxc7 {[%clk 0:16:07.3]} 36... h3 {[%clk 0:13:02.4]} 37. Rf7+ {[%clk
0:16:10.4]} 37... Kg5 {[%clk 0:12:59.4]} 38. Rg7+ {[%clk 0:16:12.7]} 38... Kh4
{[%clk 0:13:01.5]} 39. Ng6+ {[%clk 0:16:10.9]} 39... Kh5 {[%clk 0:12:57.9]} 40.
Nxf4+ {[%clk 0:16:13.8]} 1-0

[Event "Live Chess"]
[Site "Chess.com"]
[Date "2023.09.16"]
[Round "-"]
[White "maylso"]
[Black "KiwiDoFbi"]
[Result "0-1"]
[WhiteElo "1421"]
[BlackElo "1288"]
[TimeControl "900+5"]
[EndTime "7:12:58 PDT"]
[Termination "KiwiDoFbi venceu por desistência"]

1. d4 {[%clk 0:15:01.9]} 1... e5 {[%clk 0:15:01.9]} 2. dxe5 {[%clk 0:15:05.3]}
2... Nc6 {[%clk 0:15:04]} 3. Nf3 {[%clk 0:15:09.6]} 3... Qe7 {[%clk 0:15:07.8]}
4. Bf4 {[%clk 0:15:13.9]} 4... Qb4+ {[%clk 0:15:11.6]} 5. Nbd2 {[%clk
0:14:51.8]} 5... Qxf4 {[%clk 0:15:14.4]} 6. e3 {[%clk 0:14:50.8]} 6... Qb4
{[%clk 0:15:12.9]} 7. b3 {[%clk 0:14:39.6]} 7... d6 {[%clk 0:15:11.4]} 8. a3
{[%clk 0:14:43.5]} 8... Qc3 {[%clk 0:15:13.6]} 9. exd6 {[%clk 0:14:45.1]} 9...
Bxd6 {[%clk 0:15:15.9]} 10. Bc4 {[%clk 0:14:41.9]} 10... Ne5 {[%clk 0:15:07.8]}
11. Nxe5 {[%clk 0:14:43.4]} 11... Bxe5 {[%clk 0:15:10.8]} 12. Rb1 {[%clk
0:14:39]} 12... Nf6 {[%clk 0:15:08.5]} 13. O-O {[%clk 0:14:41.1]} 13... Bg4
{[%clk 0:15:02.3]} 14. Nf3 {[%clk 0:14:32.2]} 14... O-O {[%clk 0:15:01.9]} 15.
h3 {[%clk 0:14:28.1]} 15... Bh5 {[%clk 0:14:59.6]} 16. Re1 {[%clk 0:14:08.1]}
16... Rad8 {[%clk 0:14:54.2]} 17. Qe2 {[%clk 0:14:11]} 17... Bxf3 {[%clk
0:14:49.6]} 18. Qxf3 {[%clk 0:14:10.1]} 18... Qxc2 {[%clk 0:14:34.6]} 19. e4
{[%clk 0:14:04.5]} 19... Rd2 {[%clk 0:14:04.8]} 20. Rec1 {[%clk 0:13:23.7]}
20... Qa2 {[%clk 0:14:04.1]} 21. Ra1 {[%clk 0:13:05.7]} 21... Bxa1 {[%clk
0:14:06.4]} 0-1

[Event "Live Chess"]
[Site "Chess.com"]
[Date "2023.09.16"]
[Round "-"]
[White "lucasbezerraja"]
[Black "mary260210"]
[Result "0-1"]
[WhiteElo "1788"]
[BlackElo "876"]
[TimeControl "900+5"]
[EndTime "7:13:09 PDT"]
[Termination "mary260210 venceu por desistência"]

1. e4 {[%clk 0:15:04]} 1... e5 {[%clk 0:15:03.3]} 2. Nf3 {[%clk 0:15:08.1]} 2...
Nc6 {[%clk 0:15:03.3]} 3. Bc4 {[%clk 0:15:12.1]} 3... Nf6 {[%clk 0:14:51.4]} 4.
Nc3 {[%clk 0:15:10.7]} 4... Bc5 {[%clk 0:14:46.5]} 5. O-O {[%clk 0:15:12.4]}
5... O-O {[%clk 0:14:49.6]} 6. d3 {[%clk 0:15:14.9]} 6... d6 {[%clk 0:14:24.7]}
7. Be3 {[%clk 0:15:10]} 7... Bxe3 {[%clk 0:14:12.4]} 8. fxe3 {[%clk 0:15:14.9]}
8... Bg4 {[%clk 0:14:11.4]} 9. Qd2 {[%clk 0:15:08.4]} 9... Bxf3 {[%clk
0:14:14.1]} 10. Rxf3 {[%clk 0:15:11.6]} 10... Nb4 {[%clk 0:14:02.4]} 11. d4
{[%clk 0:14:58.3]} 11... exd4 {[%clk 0:14:04]} 12. exd4 {[%clk 0:14:59.8]} 12...
c5 {[%clk 0:13:58]} 13. dxc5 {[%clk 0:14:55.6]} 13... dxc5 {[%clk 0:14:00.4]}
14. Nd5 {[%clk 0:14:46.9]} 14... Nbxd5 {[%clk 0:13:59.4]} 15. exd5 {[%clk
0:14:36]} 15... Ne4 {[%clk 0:13:59.1]} 16. Qf4 {[%clk 0:14:12.2]} 16... Ng5
{[%clk 0:13:29.2]} 17. Rg3 {[%clk 0:13:56.2]} 17... f6 {[%clk 0:13:25.8]} 18.
d6+ {[%clk 0:13:45.4]} 18... Kh8 {[%clk 0:13:22.1]} 19. h4 {[%clk 0:13:34]}
19... Nf7 {[%clk 0:13:22.6]} 20. Qg4 {[%clk 0:13:18.2]} 20... g6 {[%clk
0:13:08.1]} 21. h5 {[%clk 0:13:19.1]} 21... Ne5 {[%clk 0:12:55.4]} 22. Qe4
{[%clk 0:12:54.2]} 22... Nxc4 {[%clk 0:12:52.8]} 23. Qxc4 {[%clk 0:12:50.2]}
23... Qxd6 {[%clk 0:12:55.1]} 24. hxg6 {[%clk 0:12:51.4]} 24... Qxg3 {[%clk
0:12:55]} 25. gxh7 {[%clk 0:12:50.3]} 25... Kxh7 {[%clk 0:12:55.7]} 26. Rf1
{[%clk 0:12:49.1]} 26... Rg8 {[%clk 0:12:57.1]} 27. Qf7+ {[%clk 0:12:37.3]}
27... Rg7 {[%clk 0:12:56.7]} 28. Qh5+ {[%clk 0:12:34.8]} 28... Kg8 {[%clk
0:12:57.4]} 29. Qd5+ {[%clk 0:12:38.9]} 29... Kh8 {[%clk 0:12:57.8]} 30. Qh5+
{[%clk 0:12:42.5]} 30... Rh7 {[%clk 0:12:56.2]} 31. Qxc5 {[%clk 0:12:35.5]}
31... Rg8 {[%clk 0:12:57.7]} 0-1

[Event "Live Chess"]
[Site "Chess.com"]
[Date "2023.09.16"]
[Round "-"]
[White "brenin12345"]
[Black "Mozart5501"]
[Result "0-1"]
[WhiteElo "756"]
[BlackElo "1794"]
[TimeControl "900+5"]
[EndTime "7:14:03 PDT"]
[Termination "Mozart5501 venceu por desistência"]

1. e4 {[%clk 0:15:02.1]} 1... e5 {[%clk 0:15:02.2]} 2. Nf3 {[%clk 0:15:05.9]}
2... Nc6 {[%clk 0:15:06.7]} 3. d4 {[%clk 0:15:09.3]} 3... exd4 {[%clk
0:15:10.4]} 4. Bc4 {[%clk 0:15:12.6]} 4... Bb4+ {[%clk 0:15:14.5]} 5. c3 {[%clk
0:15:15.6]} 5... dxc3 {[%clk 0:15:19.2]} 6. bxc3 {[%clk 0:15:19.4]} 6... Ba5
{[%clk 0:15:23.9]} 7. O-O {[%clk 0:15:14]} 7... Nf6 {[%clk 0:15:24.2]} 8. e5
{[%clk 0:15:02.5]} 8... d5 {[%clk 0:15:27.7]} 9. exf6 {[%clk 0:14:45.8]} 9...
dxc4 {[%clk 0:15:30.6]} 10. Qxd8+ {[%clk 0:14:44.4]} 10... Nxd8 {[%clk
0:15:32.1]} 11. fxg7 {[%clk 0:14:38.9]} 11... Rg8 {[%clk 0:15:35.4]} 12. Bh6
{[%clk 0:13:28.1]} 12... Ne6 {[%clk 0:15:38]} 13. Re1 {[%clk 0:13:16.3]} 13...
Kd8 {[%clk 0:15:40.5]} 14. Ne5 {[%clk 0:13:05.5]} 14... Nxg7 {[%clk 0:15:22.1]}
15. Nxc4 {[%clk 0:12:51]} 15... Bb6 {[%clk 0:15:20.9]} 16. Bg5+ {[%clk
0:12:18.5]} 16... Kd7 {[%clk 0:14:59.3]} 17. Re7+ {[%clk 0:11:43.7]} 17... Kc6
{[%clk 0:15:02.2]} 18. Nxb6 {[%clk 0:11:12.6]} 18... axb6 {[%clk 0:15:00.7]} 19.
Bf4 {[%clk 0:10:38.9]} 19... Ne6 {[%clk 0:14:59]} 20. Rxf7 {[%clk 0:10:22.2]}
20... Nxf4 {[%clk 0:15:00.4]} 21. Rxf4 {[%clk 0:10:22.8]} 21... Be6 {[%clk
0:14:59]} 22. Nd2 {[%clk 0:10:05]} 22... Rxa2 {[%clk 0:14:56.2]} 23. Rxa2 {[%clk
0:09:54.8]} 23... Bxa2 {[%clk 0:14:59.4]} 24. g4 {[%clk 0:09:37.9]} 24... h5
{[%clk 0:14:53]} 25. f3 {[%clk 0:09:14.1]} 25... Be6 {[%clk 0:14:46.9]} 26. h3
{[%clk 0:08:49.8]} 26... hxg4 {[%clk 0:14:40.7]} 27. hxg4 {[%clk 0:08:51.6]}
27... Rd8 {[%clk 0:14:41.3]} 28. Rd4 {[%clk 0:08:39]} 28... Rxd4 {[%clk
0:14:38.7]} 29. cxd4 {[%clk 0:08:40.9]} 29... Kd5 {[%clk 0:14:35.7]} 30. Kg2
{[%clk 0:08:40.2]} 30... Kxd4 {[%clk 0:14:38.2]} 31. Kg3 {[%clk 0:08:35.5]}
31... Ke3 {[%clk 0:14:31.8]} 32. Nf1+ {[%clk 0:08:30.2]} 32... Ke2 {[%clk
0:14:33]} 33. Nh2 {[%clk 0:08:27.8]} 33... b5 {[%clk 0:14:36.6]} 34. g5 {[%clk
0:08:29.7]} 34... b4 {[%clk 0:14:40.4]} 35. Kh4 {[%clk 0:08:04.9]} 35... b3
{[%clk 0:14:42.3]} 36. Ng4 {[%clk 0:08:02.7]} 36... b2 {[%clk 0:14:25.1]} 37.
Nf6 {[%clk 0:08:02.5]} 37... b1=Q {[%clk 0:14:25.9]} 38. g6 {[%clk 0:07:57.5]}
38... Qxg6 {[%clk 0:14:29]} 0-1

[Event "Live Chess"]
[Site "Chess.com"]
[Date "2023.09.16"]
[Round "-"]
[White "AlphaKaua10"]
[Black "InfinityDelas"]
[Result "1-0"]
[WhiteElo "1114"]
[BlackElo "761"]
[TimeControl "900+5"]
[EndTime "7:14:05 PDT"]
[Termination "AlphaKaua10 venceu - partida abandonada"]

1. d4 {[%clk 0:15:03]} 1... d5 {[%clk 0:15:03.1]} 2. c4 {[%clk 0:15:06.6]} 2...
dxc4 {[%clk 0:15:06.5]} 3. Qa4+ {[%clk 0:15:10]} 3... Nc6 {[%clk 0:15:03.2]} 4.
Qxc4 {[%clk 0:15:14.3]} 4... Nxd4 {[%clk 0:15:06.9]} 5. Nf3 {[%clk 0:15:08.7]}
5... Be6 {[%clk 0:15:08.5]} 6. Qa4+ {[%clk 0:15:05.7]} 6... Nc6 {[%clk
0:15:02.8]} 7. g3 {[%clk 0:15:03.2]} 7... Nf6 {[%clk 0:15:01.1]} 8. Bg2 {[%clk
0:15:07]} 8... Bd7 {[%clk 0:14:59.1]} 9. O-O {[%clk 0:15:08.5]} 9... Ne5 {[%clk
0:15:02.4]} 10. Qb3 {[%clk 0:15:05.8]} 10... Nxf3+ {[%clk 0:15:05.1]} 11. Bxf3
{[%clk 0:15:10]} 11... Bc6 {[%clk 0:14:59.6]} 12. Bxc6+ {[%clk 0:15:11.8]} 12...
bxc6 {[%clk 0:15:04.5]} 13. Bg5 {[%clk 0:15:12.3]} 13... e6 {[%clk 0:15:02.3]}
14. Rd1 {[%clk 0:15:11.4]} 14... Qe7 {[%clk 0:14:57.6]} 15. Qf3 {[%clk
0:15:10.3]} 15... Rd8 {[%clk 0:14:56.9]} 16. Qxc6+ {[%clk 0:15:10.2]} 16... Rd7
{[%clk 0:14:52.8]} 17. Rxd7 {[%clk 0:15:12.1]} 17... Qxd7 {[%clk 0:14:56.5]} 18.
Qxd7+ {[%clk 0:15:15.3]} 18... Kxd7 {[%clk 0:15:01.4]} 19. Bxf6 {[%clk
0:15:19.7]} 19... gxf6 {[%clk 0:15:05.4]} 20. Nc3 {[%clk 0:15:22.9]} 20... Bg7
{[%clk 0:15:09.6]} 21. Rd1+ {[%clk 0:15:24.7]} 21... Ke7 {[%clk 0:15:13.4]} 22.
f4 {[%clk 0:15:28.3]} 22... f5 {[%clk 0:15:17.5]} 23. Nb5 {[%clk 0:15:26.5]}
23... Rd8 {[%clk 0:15:12.9]} 24. Rxd8 {[%clk 0:15:26.1]} 24... Kxd8 {[%clk
0:15:17.8]} 25. Nxa7 {[%clk 0:15:30.3]} 25... Bxb2 {[%clk 0:15:18.2]} 26. Nc6+
{[%clk 0:15:33.8]} 26... Ke8 {[%clk 0:15:21.2]} 27. Ne5 {[%clk 0:15:36.4]} 27...
f6 {[%clk 0:15:22.4]} 28. Nd3 {[%clk 0:15:36.9]} 28... Bd4+ {[%clk 0:15:25.7]}
29. Kg2 {[%clk 0:15:39.5]} 29... c5 {[%clk 0:15:27.9]} 30. a4 {[%clk 0:15:38.8]}
30... c4 {[%clk 0:15:31.8]} 31. Nc1 {[%clk 0:15:34.6]} 31... c3 {[%clk
0:15:34.9]} 32. Kf3 {[%clk 0:15:33.7]} 32... c2 {[%clk 0:15:38.5]} 33. a5 {[%clk
0:15:37.2]} 33... Kd7 {[%clk 0:15:39.2]} 34. h4 {[%clk 0:15:40.7]} 34... h5
{[%clk 0:15:41]} 35. e3 {[%clk 0:15:41.1]} 35... Bb2 {[%clk 0:15:42.1]} 36. Nb3
{[%clk 0:15:42.3]} 36... c1=Q {[%clk 0:15:41.6]} 37. Nxc1 {[%clk 0:15:46.4]}
37... Bxc1 {[%clk 0:15:45.8]} 38. a6 {[%clk 0:15:50.9]} 38... e5 {[%clk
0:15:44.9]} 39. a7 {[%clk 0:15:55]} 39... e4+ {[%clk 0:15:48.8]} 40. Ke2 {[%clk
0:15:58.3]} 40... Bxe3 {[%clk 0:15:46.7]} 41. Kxe3 {[%clk 0:16:01]} 1-0

[Event "Live Chess"]
[Site "Chess.com"]
[Date "2023.09.16"]
[Round "-"]
[White "Samueeeseeel"]
[Black "xadrecarloso"]
[Result "1-0"]
[WhiteElo "906"]
[BlackElo "948"]
[TimeControl "900+5"]
[EndTime "7:14:30 PDT"]
[Termination "Samueeeseeel venceu por desistência"]

1. c4 {[%clk 0:14:59]} 1... c5 {[%clk 0:15:03.6]} 2. Nc3 {[%clk 0:14:59.4]} 2...
a6 {[%clk 0:15:04.7]} 3. g3 {[%clk 0:15:02.8]} 3... b5 {[%clk 0:15:07.7]} 4.
cxb5 {[%clk 0:14:58.6]} 4... axb5 {[%clk 0:15:10.3]} 5. Nxb5 {[%clk 0:15:02.1]}
5... Bb7 {[%clk 0:14:50.2]} 6. Nf3 {[%clk 0:15:03.6]} 6... Ra5 {[%clk 0:14:48]}
7. Nc3 {[%clk 0:15:05.4]} 7... Nf6 {[%clk 0:14:44.9]} 8. Bg2 {[%clk 0:15:08.8]}
8... g6 {[%clk 0:14:28.3]} 9. O-O {[%clk 0:15:00.4]} 9... Bg7 {[%clk 0:13:48.4]}
10. Rb1 {[%clk 0:15:01.2]} 10... Nc6 {[%clk 0:13:41.4]} 11. a3 {[%clk
0:15:03.1]} 11... Nd4 {[%clk 0:13:23.5]} 12. b4 {[%clk 0:14:59.3]} 12... Ra6
{[%clk 0:13:18.8]} 13. bxc5 {[%clk 0:14:57.6]} 13... Nxf3+ {[%clk 0:13:15.4]}
14. Bxf3 {[%clk 0:14:59.4]} 14... Bxf3 {[%clk 0:13:12.8]} 15. exf3 {[%clk
0:15:03.3]} 15... e6 {[%clk 0:13:15.8]} 16. Qe2 {[%clk 0:15:02.3]} 16... O-O
{[%clk 0:12:58.8]} 17. Qxa6 {[%clk 0:15:03.5]} 1-0